[Event "Early-Titled-Tuesday-Blitz-November-28-2023"]
[Site "Chess.com"]
[Date "2023.11.28"]
[Round "10"]
[White "Mistango"]
[Black "Vesper2018"]
[Result "1-0"]
[WhiteElo "2486"]
[BlackElo "2595"]
[TimeControl "180+1"]
[EndTime "10:02:48 PST"]
[Termination "Mistango won on time"]

1. e4 {[%clk 0:03:00.9]} 1... c5 {[%clk 0:02:59.7]} 2. Nf3 {[%clk 0:03:01.1]}
2... d6 {[%clk 0:02:59.9]} 3. d4 {[%clk 0:03:01.4]} 3... cxd4 {[%clk 0:03:00.1]}
4. Nxd4 {[%clk 0:03:02.3]} 4... Nf6 {[%clk 0:03:00.7]} 5. Nc3 {[%clk 0:03:02.5]}
5... a6 {[%clk 0:03:01.2]} 6. Be3 {[%clk 0:03:02.5]} 6... e5 {[%clk 0:03:01]} 7.
Nb3 {[%clk 0:03:03.1]} 7... Be7 {[%clk 0:03:01.2]} 8. f3 {[%clk 0:03:03.7]} 8...
Be6 {[%clk 0:02:59.7]} 9. Qd2 {[%clk 0:03:04.2]} 9... Nbd7 {[%clk 0:03:00.1]}
10. O-O-O {[%clk 0:03:03.3]} 10... b5 {[%clk 0:02:55.3]} 11. Nd5 {[%clk
0:02:52.1]} 11... Bxd5 {[%clk 0:02:49.4]} 12. exd5 {[%clk 0:02:53]} 12... Nb6
{[%clk 0:02:46.3]} 13. Bxb6 {[%clk 0:02:42.7]} 13... Qxb6 {[%clk 0:02:45.9]} 14.
Kb1 {[%clk 0:02:42.1]} 14... O-O {[%clk 0:02:35.8]} 15. h4 {[%clk 0:02:30.6]}
15... a5 {[%clk 0:02:34.4]} 16. g4 {[%clk 0:02:28.2]} 16... a4 {[%clk 0:02:29]}
17. Nc1 {[%clk 0:02:28.8]} 17... b4 {[%clk 0:02:28.1]} 18. h5 {[%clk 0:02:25.1]}
18... Ra5 {[%clk 0:02:20]} 19. Bc4 {[%clk 0:02:21]} 19... Rc8 {[%clk 0:02:19]}
20. b3 {[%clk 0:02:18.2]} 20... Rcc5 {[%clk 0:02:00.3]} 21. Nd3 {[%clk
0:02:14.3]} 21... Rxd5 {[%clk 0:01:55.1]} 22. Qxb4 {[%clk 0:02:07.1]} 22... Qxb4
{[%clk 0:01:40.6]} 23. Nxb4 {[%clk 0:02:08]} 23... Rxd1+ {[%clk 0:01:41.3]} 24.
Rxd1 {[%clk 0:02:07.1]} 24... Rc5 {[%clk 0:01:34.3]} 25. Nd5 {[%clk 0:01:35.2]}
25... Nxd5 {[%clk 0:01:22.1]} 26. Bxd5 {[%clk 0:01:04.4]} 26... a3 {[%clk
0:01:13.8]} 27. c4 {[%clk 0:01:02.9]} 27... Bd8 {[%clk 0:01:08.9]} 28. b4 {[%clk
0:01:01.5]} 28... Rc8 {[%clk 0:01:06]} 29. Kc2 {[%clk 0:01:01.6]} 29... Bb6
{[%clk 0:01:05]} 30. Kb3 {[%clk 0:00:59.5]} 30... g6 {[%clk 0:00:59.1]} 31. hxg6
{[%clk 0:00:58.1]} 31... hxg6 {[%clk 0:00:59]} 32. Kxa3 {[%clk 0:00:57.9]} 32...
Kg7 {[%clk 0:00:59.1]} 33. Kb3 {[%clk 0:00:57.4]} 33... f5 {[%clk 0:00:58.8]}
34. a4 {[%clk 0:00:53.1]} 34... Rb8 {[%clk 0:00:31.1]} 35. Ka3 {[%clk
0:00:43.1]} 35... Kf6 {[%clk 0:00:15.9]} 36. a5 {[%clk 0:00:42]} 36... Bd4
{[%clk 0:00:16.1]} 37. b5 {[%clk 0:00:34.9]} 37... fxg4 {[%clk 0:00:10.2]} 38.
fxg4 {[%clk 0:00:34.4]} 38... Kg5 {[%clk 0:00:10.9]} 39. b6 {[%clk 0:00:22.5]}
39... Kxg4 {[%clk 0:00:07.5]} 40. b7 {[%clk 0:00:22.4]} 40... Bc5+ {[%clk
0:00:06.7]} 41. Ka4 {[%clk 0:00:22.1]} 41... Kf4 {[%clk 0:00:05.4]} 42. a6
{[%clk 0:00:20.1]} 42... e4 {[%clk 0:00:05]} 43. Rf1+ {[%clk 0:00:15]} 43... Ke5
{[%clk 0:00:04.9]} 44. Rf7 {[%clk 0:00:14.6]} 44... e3 {[%clk 0:00:05.3]} 45.
Kb5 {[%clk 0:00:13.7]} 45... Re8 {[%clk 0:00:02.8]} 46. Bf3 {[%clk 0:00:10.8]}
46... Kd4 {[%clk 0:00:02.3]} 47. Rc7 {[%clk 0:00:08.7]} 47... Rb8 {[%clk
0:00:01.8]} 48. Rc8 {[%clk 0:00:08.7]} 48... Ba7 {[%clk 0:00:02.2]} 49. Rxb8
{[%clk 0:00:09.3]} 49... Bxb8 {[%clk 0:00:02.7]} 50. Kb6 {[%clk 0:00:09.9]}
50... Kd3 {[%clk 0:00:02]} 51. a7 {[%clk 0:00:10.4]} 51... Bxa7+ {[%clk
0:00:02]} 52. Kxa7 {[%clk 0:00:11.1]} 52... e2 {[%clk 0:00:01.6]} 53. Bxe2+
{[%clk 0:00:11.7]} 53... Kxe2 {[%clk 0:00:02.1]} 54. b8=Q {[%clk 0:00:12.2]} 1-0

[Event "Early-Titled-Tuesday-Blitz-November-28-2023"]
[Site "Chess.com"]
[Date "2023.11.28"]
[Round "10"]
[White "MeesvanOsch"]
[Black "SlavenPastar"]
[Result "0-1"]
[WhiteElo "2407"]
[BlackElo "2629"]
[TimeControl "180+1"]
[EndTime "10:02:50 PST"]
[Termination "SlavenPastar won by checkmate"]

1. e4 {[%clk 0:02:55.7]} 1... b6 {[%clk 0:03:00.5]} 2. d4 {[%clk 0:02:50.9]}
2... Bb7 {[%clk 0:02:59.1]} 3. Bd3 {[%clk 0:02:42.8]} 3... Nf6 {[%clk
0:02:59.5]} 4. Qe2 {[%clk 0:02:42.4]} 4... e6 {[%clk 0:02:59]} 5. Nf3 {[%clk
0:02:42.1]} 5... d5 {[%clk 0:02:58.5]} 6. e5 {[%clk 0:02:42.1]} 6... Ne4 {[%clk
0:02:58.6]} 7. Nbd2 {[%clk 0:02:40.2]} 7... Nxd2 {[%clk 0:02:58.3]} 8. Bxd2
{[%clk 0:02:40.2]} 8... c5 {[%clk 0:02:59.2]} 9. c3 {[%clk 0:02:40]} 9... a5
{[%clk 0:02:58.3]} 10. Bb5+ {[%clk 0:02:35.7]} 10... Bc6 {[%clk 0:02:57.6]} 11.
Bg5 {[%clk 0:02:33.5]} 11... Qc8 {[%clk 0:02:53.1]} 12. Bd3 {[%clk 0:02:28.8]}
12... Bb7 {[%clk 0:02:49.4]} 13. O-O {[%clk 0:02:24.4]} 13... Ba6 {[%clk
0:02:49.1]} 14. Bxa6 {[%clk 0:02:21.2]} 14... Qxa6 {[%clk 0:02:50]} 15. Qd2
{[%clk 0:02:13.5]} 15... h6 {[%clk 0:02:48.6]} 16. Bh4 {[%clk 0:02:13.2]} 16...
Nc6 {[%clk 0:02:46.3]} 17. a4 {[%clk 0:02:11.2]} 17... Rc8 {[%clk 0:02:41.4]}
18. Rfe1 {[%clk 0:02:00.6]} 18... cxd4 {[%clk 0:02:40.8]} 19. Nxd4 {[%clk
0:01:51.2]} 19... Nxd4 {[%clk 0:02:40.9]} 20. Qxd4 {[%clk 0:01:51.1]} 20... Rc4
{[%clk 0:02:39.7]} 21. Qd3 {[%clk 0:01:39.4]} 21... Qc8 {[%clk 0:02:39.5]} 22.
Qh3 {[%clk 0:01:13.2]} 22... Qc6 {[%clk 0:02:37]} 23. Kh1 {[%clk 0:00:45.5]}
23... Rxa4 {[%clk 0:02:32]} 24. Rxa4 {[%clk 0:00:44.8]} 24... Qxa4 {[%clk
0:02:32.9]} 25. Bg3 {[%clk 0:00:39.3]} 25... Be7 {[%clk 0:02:30.7]} 26. Qh5
{[%clk 0:00:37.8]} 26... O-O {[%clk 0:02:23]} 27. h3 {[%clk 0:00:36.4]} 27...
Qc2 {[%clk 0:02:20.2]} 28. Re2 {[%clk 0:00:35]} 28... Qd1+ {[%clk 0:02:18.2]}
29. Kh2 {[%clk 0:00:34.8]} 29... b5 {[%clk 0:02:06.3]} 30. Qf3 {[%clk
0:00:34.7]} 30... b4 {[%clk 0:02:04.3]} 31. cxb4 {[%clk 0:00:34.2]} 31... Bxb4
{[%clk 0:02:03.2]} 32. Bf4 {[%clk 0:00:27.9]} 32... Rc8 {[%clk 0:01:48.3]} 33.
Qe3 {[%clk 0:00:17.6]} 33... d4 {[%clk 0:01:40.2]} 34. Qe4 {[%clk 0:00:16.3]}
34... d3 {[%clk 0:01:03.9]} 35. Re3 {[%clk 0:00:14.9]} 35... d2 {[%clk
0:01:00.6]} 36. Rd3 {[%clk 0:00:14.6]} 36... Qe1 {[%clk 0:00:51.9]} 37. Qb7
{[%clk 0:00:12.6]} 37... Rc1 {[%clk 0:00:43.3]} 38. Bxd2 {[%clk 0:00:07.8]}
38... Bxd2 {[%clk 0:00:37.3]} 39. Rd8+ {[%clk 0:00:08]} 39... Kh7 {[%clk
0:00:35.4]} 40. Qxf7 {[%clk 0:00:08.9]} 40... Qxe5+ {[%clk 0:00:27.9]} 41. g3
{[%clk 0:00:08.3]} 41... Bb4 {[%clk 0:00:09.2]} 42. Qg8+ {[%clk 0:00:07.2]}
42... Kg6 {[%clk 0:00:09.8]} 43. Qe8+ {[%clk 0:00:08.1]} 43... Kf6 {[%clk
0:00:09.4]} 44. Rd3 {[%clk 0:00:06.2]} 44... Qe4 {[%clk 0:00:08.9]} 45. Qd8+
{[%clk 0:00:03.9]} 45... Be7 {[%clk 0:00:08.6]} 46. Qd4+ {[%clk 0:00:02.5]}
46... Qxd4 {[%clk 0:00:09]} 47. Rxd4 {[%clk 0:00:03.4]} 47... Rc2 {[%clk
0:00:08.4]} 48. Rf4+ {[%clk 0:00:03.5]} 48... Kg6 {[%clk 0:00:08.7]} 49. Re4
{[%clk 0:00:03.6]} 49... Rxf2+ {[%clk 0:00:08]} 50. Kg1 {[%clk 0:00:04.2]} 50...
Rxb2 {[%clk 0:00:08.4]} 51. Rxe6+ {[%clk 0:00:04.5]} 51... Bf6 {[%clk 0:00:09]}
52. Ra6 {[%clk 0:00:05.2]} 52... Ra2 {[%clk 0:00:09.6]} 53. h4 {[%clk
0:00:05.7]} 53... h5 {[%clk 0:00:09.7]} 54. Kh1 {[%clk 0:00:06.3]} 54... a4
{[%clk 0:00:10.3]} 55. g4 {[%clk 0:00:06.8]} 55... hxg4 {[%clk 0:00:10.2]} 56.
Kg1 {[%clk 0:00:07.6]} 56... Kh5 {[%clk 0:00:11]} 57. Ra5+ {[%clk 0:00:07.5]}
57... Kxh4 {[%clk 0:00:11.2]} 58. Kh1 {[%clk 0:00:08.4]} 58... Kh3 {[%clk
0:00:11.2]} 59. Rd5 {[%clk 0:00:08]} 59... Ra1+ {[%clk 0:00:11]} 60. Rd1 {[%clk
0:00:08.7]} 60... Rxd1# {[%clk 0:00:11.8]} 0-1

[Event "Early-Titled-Tuesday-Blitz-November-28-2023"]
[Site "Chess.com"]
[Date "2023.11.28"]
[Round "10"]
[White "KononenkoD"]
[Black "Alexchess1984"]
[Result "1-0"]
[WhiteElo "2546"]
[BlackElo "2703"]
[TimeControl "180+1"]
[EndTime "10:02:51 PST"]
[Termination "KononenkoD won by resignation"]

1. d4 {[%clk 0:03:00]} 1... Nf6 {[%clk 0:02:59.9]} 2. c4 {[%clk 0:03:00.3]} 2...
c5 {[%clk 0:03:00.5]} 3. Nf3 {[%clk 0:02:59.8]} 3... cxd4 {[%clk 0:02:59.1]} 4.
Nxd4 {[%clk 0:03:00.7]} 4... g6 {[%clk 0:02:59.2]} 5. Nc3 {[%clk 0:02:58.2]}
5... Nc6 {[%clk 0:02:59.2]} 6. Nc2 {[%clk 0:02:49.9]} 6... Bg7 {[%clk 0:02:57]}
7. g3 {[%clk 0:02:49.2]} 7... O-O {[%clk 0:02:57.1]} 8. Bg2 {[%clk 0:02:49.6]}
8... d6 {[%clk 0:02:56.3]} 9. O-O {[%clk 0:02:49.1]} 9... Be6 {[%clk 0:02:51.6]}
10. b3 {[%clk 0:02:49]} 10... Rc8 {[%clk 0:02:50.9]} 11. Bb2 {[%clk 0:02:48.8]}
11... a6 {[%clk 0:02:48.2]} 12. Qd2 {[%clk 0:02:45.4]} 12... Qa5 {[%clk
0:02:37.5]} 13. Rfd1 {[%clk 0:02:43.7]} 13... Rfe8 {[%clk 0:02:29.6]} 14. Ne3
{[%clk 0:02:40.3]} 14... b5 {[%clk 0:02:22.8]} 15. cxb5 {[%clk 0:02:25.6]} 15...
axb5 {[%clk 0:02:21.5]} 16. Ncd5 {[%clk 0:02:14.7]} 16... Qxd2 {[%clk
0:02:18.1]} 17. Rxd2 {[%clk 0:02:06.3]} 17... Nxd5 {[%clk 0:02:17.5]} 18. Nxd5
{[%clk 0:02:05.4]} 18... Bxb2 {[%clk 0:02:16.7]} 19. Rxb2 {[%clk 0:02:03.3]}
19... b4 {[%clk 0:02:01.7]} 20. a4 {[%clk 0:01:48.2]} 20... bxa3 {[%clk
0:01:58.3]} 21. Rxa3 {[%clk 0:01:47.9]} 21... Bxd5 {[%clk 0:01:54.5]} 22. Bxd5
{[%clk 0:01:47]} 22... Nb4 {[%clk 0:01:54.8]} 23. Bf3 {[%clk 0:01:38.2]} 23...
Rc1+ {[%clk 0:01:53.7]} 24. Kg2 {[%clk 0:01:38.2]} 24... d5 {[%clk 0:01:53.7]}
25. Ra4 {[%clk 0:01:28.6]} 25... Rb8 {[%clk 0:01:52.9]} 26. Rd2 {[%clk
0:01:28.7]} 26... e6 {[%clk 0:01:47.8]} 27. e4 {[%clk 0:01:25.6]} 27... dxe4
{[%clk 0:01:47.5]} 28. Bxe4 {[%clk 0:01:25.8]} 28... Rc3 {[%clk 0:01:41.8]} 29.
Rb2 {[%clk 0:01:12.9]} 29... Kg7 {[%clk 0:01:41.2]} 30. h4 {[%clk 0:01:08]}
30... h5 {[%clk 0:01:39.4]} 31. Ra7 {[%clk 0:01:06.4]} 31... Kf6 {[%clk
0:01:34.2]} 32. Rd2 {[%clk 0:00:58.1]} 32... Ke5 {[%clk 0:01:08]} 33. Bf3 {[%clk
0:00:23.6]} 33... Rf8 {[%clk 0:00:54.4]} 34. Rb7 {[%clk 0:00:18]} 34... Rxb3
{[%clk 0:00:39.6]} 35. Re2+ {[%clk 0:00:17.2]} 35... Kd4 {[%clk 0:00:39.3]} 36.
Re4+ {[%clk 0:00:17.2]} 36... Kc3 {[%clk 0:00:38.8]} 37. Bd1 {[%clk 0:00:16]}
37... Rb1 {[%clk 0:00:37]} 38. Be2 {[%clk 0:00:15.3]} 38... Kd2 {[%clk
0:00:19.9]} 39. Bf1 {[%clk 0:00:13.8]} 39... Rxf1 {[%clk 0:00:15.8]} 40. Kxf1
{[%clk 0:00:13.8]} 40... Nd5 {[%clk 0:00:16.2]} 41. Rb3 {[%clk 0:00:11.8]} 41...
Rc8 {[%clk 0:00:13.8]} 42. Re2+ {[%clk 0:00:12.1]} 42... Kc1 {[%clk 0:00:12.2]}
43. Rf3 {[%clk 0:00:09.7]} 43... Rc7 {[%clk 0:00:11.2]} 44. Kg2 {[%clk
0:00:09.2]} 44... Kd1 {[%clk 0:00:11.2]} 45. Ra2 {[%clk 0:00:09.2]} 45... f5
{[%clk 0:00:09.1]} 46. Rb3 {[%clk 0:00:07.8]} 46... Nc3 {[%clk 0:00:04.1]} 47.
Ra6 {[%clk 0:00:06.2]} 47... Kc2 {[%clk 0:00:01]} 48. Rbb6 {[%clk 0:00:05.2]}
48... Re7 {[%clk 0:00:01.7]} 49. Rxe6 {[%clk 0:00:05.4]} 49... Rd7 {[%clk
0:00:02.4]} 50. Rad6 {[%clk 0:00:04.4]} 1-0

[Event "Early-Titled-Tuesday-Blitz-November-28-2023"]
[Site "Chess.com"]
[Date "2023.11.28"]
[Round "10"]
[White "tacticthunder"]
[Black "SashaKuzhilniy"]
[Result "1-0"]
[WhiteElo "2802"]
[BlackElo "2643"]
[TimeControl "180+1"]
[EndTime "10:02:53 PST"]
[Termination "tacticthunder won on time"]

1. e4 {[%clk 0:03:00.9]} 1... g6 {[%clk 0:02:54.1]} 2. h4 {[%clk 0:03:00.2]}
2... d5 {[%clk 0:02:49.9]} 3. exd5 {[%clk 0:03:00.5]} 3... Qxd5 {[%clk
0:02:50.5]} 4. Nc3 {[%clk 0:03:01.2]} 4... Qd6 {[%clk 0:02:49]} 5. d4 {[%clk
0:03:01.2]} 5... Bg7 {[%clk 0:02:49]} 6. Nge2 {[%clk 0:03:01.6]} 6... Nf6 {[%clk
0:02:46.5]} 7. Bf4 {[%clk 0:03:00.9]} 7... Qd8 {[%clk 0:02:41.4]} 8. Ng3 {[%clk
0:03:00.9]} 8... Nc6 {[%clk 0:02:35.2]} 9. d5 {[%clk 0:02:56.4]} 9... e5 {[%clk
0:02:35.2]} 10. Bg5 {[%clk 0:02:47.7]} 10... Nd4 {[%clk 0:02:33.8]} 11. h5
{[%clk 0:02:33.4]} 11... h6 {[%clk 0:02:27.8]} 12. Bxf6 {[%clk 0:02:31.8]} 12...
Qxf6 {[%clk 0:02:27.2]} 13. Nce4 {[%clk 0:02:29.3]} 13... Qb6 {[%clk 0:02:22]}
14. c3 {[%clk 0:02:29.6]} 14... Nf5 {[%clk 0:02:22]} 15. hxg6 {[%clk 0:02:30.1]}
15... fxg6 {[%clk 0:02:21]} 16. Bd3 {[%clk 0:02:25.4]} 16... O-O {[%clk
0:02:16.3]} 17. Qb3 {[%clk 0:02:21.5]} 17... Bd7 {[%clk 0:02:10.5]} 18. O-O-O
{[%clk 0:02:17.7]} 18... Qxb3 {[%clk 0:02:06.3]} 19. axb3 {[%clk 0:02:17.5]}
19... Nxg3 {[%clk 0:02:05.6]} 20. Nxg3 {[%clk 0:02:08.8]} 20... Rxf2 {[%clk
0:02:02]} 21. Bxg6 {[%clk 0:02:07.2]} 21... Rxg2 {[%clk 0:01:54.7]} 22. Rhg1
{[%clk 0:02:03.9]} 22... Rxg1 {[%clk 0:01:50.5]} 23. Rxg1 {[%clk 0:02:04.8]}
23... Bf6 {[%clk 0:01:07.5]} 24. Ne4 {[%clk 0:01:54.4]} 24... Bg5+ {[%clk
0:01:07.8]} 25. Nxg5 {[%clk 0:01:53.3]} 25... hxg5 {[%clk 0:01:08.7]} 26. Rxg5
{[%clk 0:00:53.7]} 26... Kg7 {[%clk 0:01:07.7]} 27. Be4+ {[%clk 0:00:53]} 27...
Kf6 {[%clk 0:01:04.5]} 28. Rg6+ {[%clk 0:00:51.3]} 28... Kf7 {[%clk 0:01:04.9]}
29. d6 {[%clk 0:00:45]} 29... c6 {[%clk 0:00:55.4]} 30. Rh6 {[%clk 0:00:39]}
30... Rg8 {[%clk 0:00:55.4]} 31. c4 {[%clk 0:00:38.4]} 31... b6 {[%clk
0:00:49.7]} 32. Kd2 {[%clk 0:00:32.4]} 32... Rg4 {[%clk 0:00:37]} 33. Kd3 {[%clk
0:00:20.6]} 33... Rg3+ {[%clk 0:00:34.6]} 34. Kc2 {[%clk 0:00:21.1]} 34... Re3
{[%clk 0:00:32.4]} 35. Rh7+ {[%clk 0:00:11.2]} 35... Ke6 {[%clk 0:00:30.7]} 36.
Bf5+ {[%clk 0:00:11.7]} 36... Kxf5 {[%clk 0:00:31.2]} 37. Rxd7 {[%clk
0:00:12.4]} 37... Ke6 {[%clk 0:00:30.7]} 38. Rxa7 {[%clk 0:00:09.9]} 38... Kxd6
{[%clk 0:00:30.6]} 39. b4 {[%clk 0:00:10.6]} 39... b5 {[%clk 0:00:21.2]} 40. c5+
{[%clk 0:00:07.3]} 40... Kd5 {[%clk 0:00:20.7]} 41. b3 {[%clk 0:00:08]} 41...
Rh3 {[%clk 0:00:18.2]} 42. Rd7+ {[%clk 0:00:08.1]} 42... Ke4 {[%clk 0:00:17.6]}
43. Rd6 {[%clk 0:00:09]} 43... Rh2+ {[%clk 0:00:14.9]} 44. Kc3 {[%clk
0:00:09.7]} 44... Rh3+ {[%clk 0:00:15.2]} 45. Kb2 {[%clk 0:00:10.4]} 45... Rh2+
{[%clk 0:00:15.7]} 46. Ka3 {[%clk 0:00:10.5]} 46... Kf3 {[%clk 0:00:07.4]} 47.
Rxc6 {[%clk 0:00:08.8]} 47... e4 {[%clk 0:00:07.9]} 48. Rf6+ {[%clk 0:00:06.4]}
48... Ke2 {[%clk 0:00:08.4]} 49. c6 {[%clk 0:00:05.8]} 49... e3 {[%clk
0:00:08.2]} 50. Rf5 {[%clk 0:00:06.2]} 50... Kd3 {[%clk 0:00:05.2]} 51. c7
{[%clk 0:00:05]} 51... Rh8 {[%clk 0:00:04.5]} 52. Rd5+ {[%clk 0:00:05.2]} 52...
Kc2 {[%clk 0:00:04]} 53. Rd8 {[%clk 0:00:06.1]} 53... Rh1 {[%clk 0:00:01.2]} 54.
c8=Q+ {[%clk 0:00:05.7]} 1-0

[Event "Early-Titled-Tuesday-Blitz-November-28-2023"]
[Site "Chess.com"]
[Date "2023.11.28"]
[Round "10"]
[White "IljaZaragatski"]
[Black "cthulhuuu"]
[Result "1-0"]
[WhiteElo "2614"]
[BlackElo "2480"]
[TimeControl "180+1"]
[EndTime "10:02:53 PST"]
[Termination "IljaZaragatski won on time"]

1. Nf3 {[%clk 0:01:53.7]} 1... Nf6 {[%clk 0:02:59.2]} 2. g3 {[%clk 0:01:53.7]}
2... g6 {[%clk 0:02:59.7]} 3. b3 {[%clk 0:01:53.7]} 3... Bg7 {[%clk 0:03:00.4]}
4. Bb2 {[%clk 0:01:54.3]} 4... O-O {[%clk 0:03:01.2]} 5. Bg2 {[%clk 0:01:54.7]}
5... d6 {[%clk 0:03:01.8]} 6. d4 {[%clk 0:01:55.1]} 6... Re8 {[%clk 0:03:01.1]}
7. O-O {[%clk 0:01:55.2]} 7... c6 {[%clk 0:03:01.3]} 8. Nbd2 {[%clk 0:01:51.9]}
8... Nbd7 {[%clk 0:02:59.9]} 9. e4 {[%clk 0:01:50.1]} 9... e5 {[%clk 0:02:57.8]}
10. dxe5 {[%clk 0:01:51]} 10... Nxe5 {[%clk 0:02:57.9]} 11. Nxe5 {[%clk
0:01:50.7]} 11... dxe5 {[%clk 0:02:58.8]} 12. Qe2 {[%clk 0:01:50.6]} 12... b5
{[%clk 0:02:52.3]} 13. Rfd1 {[%clk 0:01:50.3]} 13... Qb6 {[%clk 0:02:49.8]} 14.
a4 {[%clk 0:01:50.3]} 14... a6 {[%clk 0:02:46.6]} 15. axb5 {[%clk 0:01:35.7]}
15... Bg4 {[%clk 0:02:39.4]} 16. Bf3 {[%clk 0:01:32.3]} 16... Bxf3 {[%clk
0:02:37.4]} 17. Nxf3 {[%clk 0:01:31.9]} 17... cxb5 {[%clk 0:02:30.4]} 18. Bxe5
{[%clk 0:01:24.3]} 18... Qe6 {[%clk 0:02:04.2]} 19. Rd6 {[%clk 0:01:00.3]} 19...
Qxd6 {[%clk 0:01:34.1]} 20. Bxd6 {[%clk 0:00:59.8]} 20... Nxe4 {[%clk
0:01:34.4]} 21. Be5 {[%clk 0:00:46.4]} 21... Ng5 {[%clk 0:00:51.5]} 22. Nxg5
{[%clk 0:00:38.1]} 22... Rxe5 {[%clk 0:00:51.2]} 23. Qf3 {[%clk 0:00:37.6]}
23... Rf8 {[%clk 0:00:51.9]} 24. Nh3 {[%clk 0:00:21.6]} 24... Rf5 {[%clk
0:00:28.9]} 25. Qd1 {[%clk 0:00:19.2]} 25... Bxa1 {[%clk 0:00:28.8]} 26. Qxa1
{[%clk 0:00:20.1]} 26... Re8 {[%clk 0:00:25.7]} 27. Qxa6 {[%clk 0:00:19.4]}
27... Re1+ {[%clk 0:00:20.4]} 28. Kg2 {[%clk 0:00:19.3]} 28... Re2 {[%clk
0:00:21]} 29. Qc6 {[%clk 0:00:18.9]} 29... Kg7 {[%clk 0:00:19.9]} 30. c4 {[%clk
0:00:18.3]} 30... bxc4 {[%clk 0:00:19.5]} 31. bxc4 {[%clk 0:00:19.2]} 31... Ra5
{[%clk 0:00:17.2]} 32. c5 {[%clk 0:00:12.1]} 32... Re5 {[%clk 0:00:14.7]} 33.
Nf4 {[%clk 0:00:09.9]} 33... Raxc5 {[%clk 0:00:13.9]} 34. Qd6 {[%clk 0:00:09.3]}
34... Ra5 {[%clk 0:00:12]} 35. h4 {[%clk 0:00:09.5]} 35... h6 {[%clk 0:00:11.1]}
36. h5 {[%clk 0:00:09.6]} 36... g5 {[%clk 0:00:11.5]} 37. Nd3 {[%clk 0:00:09]}
37... Re6 {[%clk 0:00:10.4]} 38. Qd4+ {[%clk 0:00:08.2]} 38... Kg8 {[%clk
0:00:10.4]} 39. g4 {[%clk 0:00:08.4]} 39... Ra2 {[%clk 0:00:09.9]} 40. Qd8+
{[%clk 0:00:06]} 40... Kg7 {[%clk 0:00:10.1]} 41. Qd4+ {[%clk 0:00:05.4]} 41...
Kg8 {[%clk 0:00:10.1]} 42. Kf3 {[%clk 0:00:05.3]} 42... Kh7 {[%clk 0:00:05.3]}
43. Ne5 {[%clk 0:00:04.1]} 43... Kg7 {[%clk 0:00:05]} 44. Kg3 {[%clk 0:00:03]}
44... Ra3+ {[%clk 0:00:04.3]} 45. f3 {[%clk 0:00:03.3]} 45... Rf6 {[%clk
0:00:04.4]} 46. Qe4 {[%clk 0:00:02.5]} 46... Rb3 {[%clk 0:00:02.7]} 47. Nc4
{[%clk 0:00:02.6]} 47... Rbxf3+ {[%clk 0:00:02.8]} 48. Qxf3 {[%clk 0:00:02.3]}
48... Rxf3+ {[%clk 0:00:03]} 49. Kxf3 {[%clk 0:00:03.2]} 49... f5 {[%clk
0:00:02.2]} 50. Ne3 {[%clk 0:00:03.4]} 50... Kf6 {[%clk 0:00:03.1]} 51. Nxf5
{[%clk 0:00:03.4]} 1-0

[Event "Early-Titled-Tuesday-Blitz-November-28-2023"]
[Site "Chess.com"]
[Date "2023.11.28"]
[Round "10"]
[White "Witik"]
[Black "bubeliang"]
[Result "1-0"]
[WhiteElo "2800"]
[BlackElo "2644"]
[TimeControl "180+1"]
[EndTime "10:02:54 PST"]
[Termination "Witik won on time"]

1. e4 {[%clk 0:02:59.5]} 1... c6 {[%clk 0:02:59.4]} 2. d4 {[%clk 0:02:59.2]}
2... d5 {[%clk 0:03:00.3]} 3. exd5 {[%clk 0:02:58.5]} 3... cxd5 {[%clk
0:03:01.2]} 4. Bd3 {[%clk 0:02:58.6]} 4... Nc6 {[%clk 0:03:01.1]} 5. c3 {[%clk
0:02:59.1]} 5... Qc7 {[%clk 0:03:00.4]} 6. h3 {[%clk 0:02:59.2]} 6... g6 {[%clk
0:02:58.7]} 7. Ne2 {[%clk 0:02:58.7]} 7... Nf6 {[%clk 0:02:55.4]} 8. Bf4 {[%clk
0:02:58.4]} 8... Qd8 {[%clk 0:02:49.8]} 9. Nd2 {[%clk 0:02:56.6]} 9... Bg7
{[%clk 0:02:49.5]} 10. Nf3 {[%clk 0:02:46.3]} 10... O-O {[%clk 0:02:49.1]} 11.
O-O {[%clk 0:02:46.1]} 11... Bf5 {[%clk 0:02:47.7]} 12. Re1 {[%clk 0:02:44.3]}
12... Bxd3 {[%clk 0:02:46]} 13. Qxd3 {[%clk 0:02:44.1]} 13... Ne4 {[%clk
0:02:46.9]} 14. Nd2 {[%clk 0:02:39]} 14... Nxd2 {[%clk 0:02:42.4]} 15. Qxd2
{[%clk 0:02:38.3]} 15... e6 {[%clk 0:02:42.4]} 16. g3 {[%clk 0:02:33.7]} 16...
Rc8 {[%clk 0:02:41.8]} 17. Kg2 {[%clk 0:02:33.6]} 17... f6 {[%clk 0:02:39]} 18.
Rad1 {[%clk 0:02:24.7]} 18... Qd7 {[%clk 0:02:31.8]} 19. Bh6 {[%clk 0:02:05]}
19... Rfe8 {[%clk 0:02:30.3]} 20. Bxg7 {[%clk 0:02:04.4]} 20... Kxg7 {[%clk
0:02:31.2]} 21. Nf4 {[%clk 0:02:04.5]} 21... Na5 {[%clk 0:02:20.9]} 22. Re2
{[%clk 0:01:58.3]} 22... Nc4 {[%clk 0:02:20]} 23. Qe1 {[%clk 0:01:58.5]} 23...
Kf7 {[%clk 0:02:12.8]} 24. Nd3 {[%clk 0:01:54.7]} 24... b6 {[%clk 0:02:09.6]}
25. h4 {[%clk 0:01:50.1]} 25... Nd6 {[%clk 0:02:04.1]} 26. Qh1 {[%clk
0:01:47.3]} 26... h5 {[%clk 0:02:01.5]} 27. Rde1 {[%clk 0:01:46.9]} 27... Ne4
{[%clk 0:01:52]} 28. f3 {[%clk 0:01:40.3]} 28... Nd6 {[%clk 0:01:51.1]} 29. Nf4
{[%clk 0:01:37.1]} 29... Qb5 {[%clk 0:01:40.8]} 30. Qh3 {[%clk 0:01:18.4]} 30...
Nf5 {[%clk 0:01:36]} 31. g4 {[%clk 0:01:18.4]} 31... e5 {[%clk 0:01:22.9]} 32.
Nxg6 {[%clk 0:00:53.4]} 32... Kxg6 {[%clk 0:01:14.6]} 33. gxh5+ {[%clk
0:00:52.4]} 33... Kf7 {[%clk 0:01:02.1]} 34. Qxf5 {[%clk 0:00:51.3]} 34... Rg8+
{[%clk 0:01:00.5]} 35. Kh2 {[%clk 0:00:45.5]} 35... e4 {[%clk 0:00:56.9]} 36.
fxe4 {[%clk 0:00:38.9]} 36... Rce8 {[%clk 0:00:56.8]} 37. Rf2 {[%clk 0:00:29.5]}
37... Qc6 {[%clk 0:00:49.7]} 38. e5 {[%clk 0:00:20.7]} 38... Re6 {[%clk
0:00:35]} 39. h6 {[%clk 0:00:17.3]} 39... Rg6 {[%clk 0:00:29.4]} 40. Rg1 {[%clk
0:00:09.9]} 40... Rxh6 {[%clk 0:00:26.1]} 41. Rg4 {[%clk 0:00:10]} 41... Qe8
{[%clk 0:00:20.6]} 42. Rfg2 {[%clk 0:00:09.9]} 42... Ke7 {[%clk 0:00:12.4]} 43.
Rg7+ {[%clk 0:00:08.9]} 43... Kd8 {[%clk 0:00:12.8]} 44. Rg8 {[%clk 0:00:08.6]}
44... Rxh4+ {[%clk 0:00:12.1]} 45. Kg1 {[%clk 0:00:09.2]} 45... fxe5 {[%clk
0:00:08.2]} 46. Qxe6 {[%clk 0:00:08.4]} 46... Qxg8 {[%clk 0:00:04.8]} 47. Rxg8+
{[%clk 0:00:08.2]} 47... Kc7 {[%clk 0:00:05.7]} 48. Qc8+ {[%clk 0:00:06.5]}
48... Kd6 {[%clk 0:00:02.4]} 49. Rg6+ {[%clk 0:00:06.6]} 49... Ke7 {[%clk
0:00:03.3]} 50. Qc7+ {[%clk 0:00:05.1]} 50... Kf8 {[%clk 0:00:02.4]} 51. Rf6+
{[%clk 0:00:04.3]} 51... Ke8 {[%clk 0:00:01.6]} 52. Qc8+ {[%clk 0:00:03.7]}
52... Ke7 {[%clk 0:00:01.8]} 53. Re6+ {[%clk 0:00:04.3]} 53... Kf7 {[%clk
0:00:02.2]} 54. Qe8+ {[%clk 0:00:04.8]} 54... Kg7 {[%clk 0:00:03.1]} 55. Rg6+
{[%clk 0:00:05.4]} 1-0